[Event "Festival Groningen-A 2024"]
[Site "Groningen"]
[Date "2024.12.29"]
[Round "8.14"]
[White "Dolzhykova, Kateryna"]
[Black "Mareau, Timothe"]
[Result "0-1"]
[ECO "B30"]
[WhiteElo "2322"]
[BlackElo "2168"]
[Annotator "RC"]
[PlyCount "148"]
[EventDate "2024.12.21"]
[EventType "swiss"]
[EventCountry "NED"]
[SourceTitle "playchess.com"]
[Source "ChessBase"]
[SourceQuality "1"]
[TimeControl "40/5400+30:1800+30"]

1. e4 {[%emt 0:00:01]} c5 {[%emt 0:00:07]} 2. Nf3 {[%emt 0:00:07]} Nc6 {[%emt 0:00:05]} 3. Bb5 {[%emt 0:00:05]} Nf6 {[%emt 0:00:33]} 4. e5 {[%emt 0:01:21]} Nd5 {[%emt 0:00:19]} 5. O-O {[%emt 0:00:50]} Nc7 {[%emt 0:00:46]} 6. Bxc6 {[%emt 0:01:02]} dxc6 {[%emt 0:00:08]} 7. Nc3 {[%emt 0:02:03]} Bg4 {[%emt 0:00:16]} 8. d3 {[%emt 0:02:11]} Nb5 {[%emt 0:09:04]} 9. Nxb5 {[%emt 0:06:37]} cxb5 {[%emt 0:00:47]} 10. a4 {[%emt 0:00:08]} bxa4 {[%emt 0:11:38]} 11. Rxa4 {[%emt 0:05:41]} Qd7 {[%emt 0:00:06]} 12. Rc4 {[%emt 0:02:37]} Rc8 {[%emt 0:05:23]} 13. Be3 {[%emt 0:05:08]} b6 {[%emt 0:04:14]} 14. Qa1 {[%emt 0:10:09]} Bxf3 {[%emt 0:02:29]} 15. gxf3 {[%emt 0:00:07]} e6 {[%emt 0:00:56]} 16. b4 {[%emt 0:03:35]} Rc7 {[%emt 0:06:04]} 17. bxc5 {[%emt 0:04:41]} Bxc5 {[%emt 0:00:11]} 18. Qc3 {[%emt 0:02:11]} Qd5 {[%emt 0:05:21]} 19. Bxc5 {[%emt 0:25:50]} Rxc5 {[%emt 0:00:18]} 20. Rxc5 {[%emt 0:00:11]} bxc5 {[%emt 0:00:07]} 21. Qb3 {[%emt 0:00:30]} Qxe5 {[%emt 0:06:06]} 22. Qb5+ {[%emt 0:03:33]} Ke7 {[%emt 0:00:16]} 23. Qa5 {[%emt 0:05:30]} Qg5+ {[%emt 0:03:43]} 24. Kh1 {[%emt 0:00:02]} Qd5 {[%emt 0:00:06]} 25. Qxa7+ {[%emt 0:01:21]} Kf6 {[%emt 0:01:05]} 26. Qa1+ {[%emt 0:00:04]} Qd4 {[%emt 0:01:31]} 27. Qc1 {[%emt 0:00:46]} Rd8 {[%emt 0:00:38]} 28. Rg1 {[%emt 0:00:29]} Rd5 {[%emt 0:00:04]} 29. Qd2 {[%emt 0:02:12]} h5 {[%emt 0:02:15]} 30. Rg3 {[%emt 0:01:51]} c4 {[%emt 0:01:02]} 31. c3 {[%emt 0:03:22]} Qxd3 {[%emt 0:01:52]} 32. Qf4+ {[%emt 0:01:12]} Rf5 {[%emt 0:03:28]} 33. Qh4+ {[%emt 0:07:05]} g5 {[%emt 0:00:20]} 34. Qxh5 {[%emt 0:00:21]} Qf1+ {[%emt 0:00:05]} 35. Rg1 {[%emt 0:00:01]} Qxf2 {[%emt 0:00:07]} 36. h4 {[%emt 0:02:01]} Qxf3+ {[%emt 0:00:56]} 37. Qxf3 {[%emt 0:00:04]} Rxf3 {[%emt 0:00:06]} 38. Rxg5 {[%emt 0:01:03]} Rxc3 {[%emt 0:00:39]} 39. Kg2 {[%emt 0:00:17]} Rd3 {[%emt 0:02:32]} 40. Rc5 {[%emt 0:01:52]} c3 {[%emt 0:00:09]} 41. Rc7 {[%emt 0:02:19]} Kg6 {[%emt 0:01:58]} 42. h5+ {[%emt 0:04:26]} Kf6 {[%emt 0:00:05]} 43. h6 {[%emt 0:02:53]} Rd5 {[%emt 0:00:10]} 44. Rxc3 {[%emt 0:02:32]} Rg5+ {[%emt 0:00:55]} 45. Kh3 {[%emt 0:01:55]} Rh5+ {[%emt 0:00:07]} 46. Kg4 {[%emt 0:00:01]} Rxh6 {[%emt 0:00:08]} 47. Rf3+ {[%emt 0:00:12]} Ke7 {[%emt 0:00:08]} 48. Ra3 {[%emt 0:00:24]} Rg6+ {[%emt 0:00:26]} 49. Kf4 {[%emt 0:00:07]} Rf6+ {[%emt 0:00:05]} 50. Ke4 {[%emt 0:00:11]} Rf1 {[%emt 0:00:05]} 51. Ra7+ {[%emt 0:00:24]} Kf6 {[%emt 0:00:06]} 52. Ra6 {[%emt 0:00:30]} Rb1 {[%emt 0:00:08]} 53. Ra7 {[%emt 0:01:21]} Rb4+ {[%emt 0:00:05]} 54. Ke3 {[%emt 0:00:27]} e5 {[%emt 0:00:10]} 55. Rc7 {[%emt 0:00:22]} Kg6 {[%emt 0:00:07]} 56. Rc5 {[%emt 0:01:26]} Kf5 {[%emt 0:00:10]} 57. Rc3 {[%emt 0:00:08]} Rh4 {[%emt 0:00:31]} 58. Kf2 {[%emt 0:00:40]} e4 {[%emt 0:00:20]} 59. Kg3 {[%emt 0:00:15]} Rg4+ {[%emt 0:00:20]} 60. Kf2 {[%emt 0:00:01]} Kf4 {[%emt 0:00:09]} 61. Ra3 {[%emt 0:00:56]} f5 {[%emt 0:00:17]} 62. Rh3 {[%emt 0:00:53]} e3+ {[%emt 0:01:04]} 63. Kf1 {[%emt 0:00:27]} Ke4 {[%emt 0:00:11]} 64. Rh8 {[%emt 0:00:34]} f4 {[%emt 0:00:10]} 65. Rh7 {[%emt 0:00:45]} Kf3 {[%emt 0:00:08]} 66. Rh3+ {[%emt 0:00:30]} Rg3 {[%emt 0:00:06]} 67. Rh1 {[%emt 0:00:01]} e2+ {[%emt 0:00:29]} 68. Ke1 {[%emt 0:00:01]} Ke3 {[%emt 0:00:06]} 69. Rh3 {[%emt 0:00:05]} Kf3 {[%emt 0:00:43]} 70. Rh1 {[%emt 0:00:05]} Rg7 {[%emt 0:00:26]} 71. Rh3+ {[%emt 0:00:25]} Kg2 {[%emt 0:00:06]} 72. Rh4 {[%emt 0:00:15]} f3 {[%emt 0:00:05]} 73. Rf4 {[%emt 0:00:03]} Ra7 {[%emt 0:00:24]} 74. Rg4+ {[%emt 0:01:06]} Kh3 {[%emt 0:00:05]} 0-1

[Event "Festival Groningen-A 2024"]
[Site "Groningen"]
[Date "2024.12.29"]
[Round "8.15"]
[White "Kazarjan, Gachatur"]
[Black "Van der Hagen, Loek"]
[Result "1/2-1/2"]
[ECO "B62"]
[WhiteElo "2067"]
[BlackElo "2315"]
[Annotator "RC"]
[PlyCount "68"]
[EventDate "2024.12.21"]
[EventType "swiss"]
[EventCountry "NED"]
[SourceTitle "playchess.com"]
[Source "ChessBase"]
[SourceQuality "1"]
[TimeControl "40/5400+30:1800+30"]

1. e4 {[%emt 0:04:23]} c5 {[%emt 0:00:04]} 2. Nf3 {[%emt 0:00:05]} Nc6 {[%emt 0:00:19]} 3. d4 {[%emt 0:00:14]} cxd4 {[%emt 0:00:06]} 4. Nxd4 {[%emt 0:00:11]} Nf6 {[%emt 0:00:08]} 5. Nc3 {[%emt 0:00:04]} d6 {[%emt 0:00:08]} 6. Bg5 {[%emt 0:00:33]} e6 {[%emt 0:00:10]} 7. Qd3 {[%emt 0:02:05]} Be7 {[%emt 0:00:59]} 8. O-O-O {[%emt 0:00:41]} a6 {[%emt 0:00:17]} 9. f4 {[%emt 0:00:06]} Bd7 {[%emt 0:01:45]} 10. Nf3 {[%emt 0:01:01]} Qa5 {[%emt 0:05:01]} 11. Kb1 {[%emt 0:00:48]} Rd8 {[%emt 0:00:52]} 12. Qe3 {[%emt 0:05:33]} h6 {[%emt 0:15:36]} 13. Bxf6 {[%emt 0:05:11]} gxf6 {[%emt 0:01:46]} 14. f5 {[%emt 0:01:20]} b5 {[%emt 0:03:42]} 15. Ne2 {[%emt 0:04:08]} Rc8 {[%emt 0:05:40]} 16. Nfd4 {[%emt 0:04:44]} Nxd4 {[%emt 0:07:17]} 17. Nxd4 {[%emt 0:05:02]} e5 {[%emt 0:01:37]} 18. Nb3 {[%emt 0:01:16]} Qc7 {[%emt 0:01:49]} 19. Qd2 {[%emt 0:01:36]} Bc6 {[%emt 0:05:53]} 20. Bd3 {[%emt 0:01:53]} Rd8 {[%emt 0:09:01]} 21. Rhe1 {[%emt 0:03:33]} d5 {[%emt 0:01:20]} 22. exd5 {[%emt 0:00:42]} Bxd5 {[%emt 0:00:20]} 23. Qe2 {[%emt 0:01:11]} Qc6 {[%emt 0:09:20]} 24. Be4 {[%emt 0:02:56]} Bxe4 {[%emt 0:03:18]} 25. Rxd8+ {[%emt 0:01:34]} Bxd8 {[%emt 0:00:04]} 26. Qxe4 {[%emt 0:00:04]} Qxe4 {[%emt 0:01:11]} 27. Rxe4 {[%emt 0:00:05]} Rg8 {[%emt 0:00:58]} 28. g4 {[%emt 0:00:07]} h5 {[%emt 0:04:51]} 29. h3 {[%emt 0:00:01]} hxg4 {[%emt 0:00:20]} 30. hxg4 {[%emt 0:00:05]} Be7 {[%emt 0:07:45]} 31. a4 {[%emt 0:01:36]} Kd7 {[%emt 0:00:13]} 32. axb5 {[%emt 0:00:35]} axb5 {[%emt 0:00:05]} 33. c4 {[%emt 0:01:53]} b4 {[%emt 0:15:05]} 34. c5 {[%emt 0:52:14]} Rb8 {[%emt 0:00:30]} 1/2-1/2

[Event "Festival Groningen-A 2024"]
[Site "Groningen"]
[Date "2024.12.29"]
[Round "8.16"]
[White "Duijker, Rick"]
[Black "Schoorl, Rob"]
[Result "1/2-1/2"]
[ECO "A45"]
[WhiteElo "2146"]
[BlackElo "2295"]
[Annotator "RC"]
[PlyCount "21"]
[EventDate "2024.12.21"]
[EventType "swiss"]
[EventCountry "NED"]
[SourceTitle "playchess.com"]
[Source "ChessBase"]
[SourceQuality "1"]
[TimeControl "40/5400+30:1800+30"]

1. d4 {[%emt 0:00:06]} Nf6 {[%emt 0:00:05]} 2. Bf4 {[%emt 0:00:15]} c5 {[%emt 0:00:06]} 3. e3 {[%emt 0:00:21]} Qb6 {[%emt 0:00:07]} 4. Na3 {[%emt 0:00:47]} Qxb2 {[%emt 0:00:10]} 5. Nb5 {[%emt 0:00:12]} Nd5 {[%emt 0:00:12]} 6. Rb1 {[%emt 0:00:17]} Qxa2 {[%emt 0:00:07]} 7. Ra1 {[%emt 0:00:18]} Qb2 {[%emt 0:00:11]} 8. Rb1 {[%emt 0:00:10]} Qa2 {[%emt 0:00:06]} 9. Ra1 {[%emt 0:00:20]} Qb2 {[%emt 0:00:09]} 10. Rb1 {[%emt 0:00:11]} Qa2 {[%emt 0:00:08]} 11. Ra1 {[%emt 0:00:17]} 1/2-1/2

[Event "Festival Groningen-A 2024"]
[Site "Groningen"]
[Date "2024.12.29"]
[Round "8.17"]
[White "Van Rootselaar, Rik"]
[Black "Okuno, Rion"]
[Result "1/2-1/2"]
[ECO "B92"]
[WhiteElo "2265"]
[BlackElo "2027"]
[Annotator "RC"]
[PlyCount "77"]
[EventDate "2024.12.21"]
[EventType "swiss"]
[EventCountry "NED"]
[SourceTitle "playchess.com"]
[Source "ChessBase"]
[SourceQuality "1"]
[TimeControl "40/5400+30:1800+30"]

1. e4 {[%emt 0:00:08]} c5 {[%emt 0:00:05]} 2. Nf3 {[%emt 0:00:23]} d6 {[%emt 0:00:05]} 3. d4 {[%emt 0:00:18]} cxd4 {[%emt 0:00:03]} 4. Nxd4 {[%emt 0:00:07]} Nf6 {[%emt 0:00:04]} 5. Nc3 {[%emt 0:00:06]} a6 {[%emt 0:00:02]} 6. Be2 {[%emt 0:01:01]} e5 {[%emt 0:00:05]} 7. Nb3 {[%emt 1:31:57]} Be7 {[%emt 0:08:13]} 8. Be3 {[%emt 0:00:00]} Be6 {[%emt 0:10:28]} 9. Nd5 {[%emt 0:00:00]} Nbd7 {[%emt 0:02:52]} 10. Qd3 {[%emt 0:00:00]} O-O {[%emt 0:02:02]} 11. O-O {[%emt 0:00:00]} Bxd5 {[%emt 0:04:02]} 12. exd5 {[%emt 0:00:00]} Qc7 {[%emt 0:08:12]} 13. a4 {[%emt 0:00:00]} b6 {[%emt 0:04:23]} 14. a5 {[%emt 0:00:00]} b5 {[%emt 0:00:52]} 15. Rfc1 {[%emt 0:00:00]} Qb7 {[%emt 0:00:57]} 16. Bf3 {[%emt 0:00:00]} Rac8 {[%emt 0:29:30]} 17. Nd2 {[%emt 0:00:00]} e4 {[%emt 0:04:05]} 18. Nxe4 {[%emt 0:00:00]} Ne5 {[%emt 0:00:57]} 19. Qd1 {[%emt 0:00:00]} Nxe4 {[%emt 0:04:45]} 20. Bxe4 {[%emt 0:00:00]} f5 {[%emt 0:00:23]} 21. Bf3 {[%emt 0:00:00]} Bf6 {[%emt 0:00:34]} 22. Ra2 {[%emt 0:00:00]} Rfe8 {[%emt 0:04:49]} 23. g3 {[%emt 0:00:00]} Nxf3+ {[%emt 0:01:06]} 24. Qxf3 {[%emt 0:00:00]} Re5 {[%emt 0:00:01]} 25. c3 {[%emt 0:00:00]} Qxd5 {[%emt 0:00:06]} 26. Qxd5+ {[%emt 0:00:00]} Rxd5 {[%emt 0:00:03]} 27. Raa1 {[%emt 0:00:00]} Kf7 {[%emt 0:00:49]} 28. Rd1 {[%emt 0:00:00]} Rxd1+ {[%emt 0:00:05]} 29. Rxd1 {[%emt 0:00:00]} Ke6 {[%emt 0:00:06]} 30. Kf1 {[%emt 0:00:00]} Rc4 {[%emt 0:01:39]} 31. Bf4 {[%emt 0:00:00]} d5 {[%emt 0:01:42]} 32. Ke2 {[%emt 0:00:00]} b4 {[%emt 0:00:38]} 33. cxb4 {[%emt 0:00:19]} Rxb4 {[%emt 0:00:04]} 34. Rc1 {[%emt 0:00:30]} Rc4 {[%emt 0:00:57]} 35. Kd3 {[%emt 0:01:11]} Rd4+ {[%emt 0:01:06]} 36. Ke2 {[%emt 0:00:29]} Rc4 {[%emt 0:00:06]} 37. Kd3 {[%emt 0:00:04]} Rd4+ {[%emt 0:00:03]} 38. Ke2 {[%emt 0:00:22]} Rc4 {[%emt 0:00:01]} 39. Kd3 {[%emt 0:13:05]} 1/2-1/2

[Event "Festival Groningen-A 2024"]
[Site "Groningen"]
[Date "2024.12.29"]
[Round "8.18"]
[White "Weber, Samuel"]
[Black "Ten Dam, Bram"]
[Result "1-0"]
[ECO "B10"]
[WhiteElo "2263"]
[BlackElo "2002"]
[Annotator "RC"]
[PlyCount "127"]
[EventDate "2024.12.21"]
[EventType "swiss"]
[EventCountry "NED"]
[SourceTitle "playchess.com"]
[Source "ChessBase"]
[SourceQuality "1"]
[TimeControl "40/5400+30:1800+30"]

1. e4 {[%emt 0:00:03]} c6 {[%emt 0:00:21]} 2. Nf3 {[%emt 0:00:40]} d5 {[%emt 0:00:14]} 3. d3 {[%emt 0:00:15]} Bg4 {[%emt 0:05:22]} 4. h3 {[%emt 0:00:11]} Bh5 {[%emt 0:01:45]} 5. Be2 {[%emt 0:13:53]} dxe4 {[%emt 0:01:51]} 6. dxe4 {[%emt 0:00:10]} Qxd1+ {[%emt 0:00:19]} 7. Kxd1 {[%emt 0:01:38]} Bxf3 {[%emt 0:01:07]} 8. Bxf3 {[%emt 0:00:25]} Nd7 {[%emt 0:02:31]} 9. Nd2 {[%emt 0:06:39]} e5 {[%emt 0:03:19]} 10. Nc4 {[%emt 0:03:55]} O-O-O {[%emt 0:05:21]} 11. Ke2 {[%emt 0:03:17]} Ngf6 {[%emt 0:01:39]} 12. Rd1 {[%emt 0:01:33]} Be7 {[%emt 0:04:04]} 13. Bg5 {[%emt 0:23:32]} Kc7 {[%emt 0:11:43]} 14. a4 {[%emt 0:00:43]} Rhe8 {[%emt 0:03:46]} 15. Bh4 {[%emt 0:06:46]} Nc5 {[%emt 0:11:30]} 16. Rxd8 {[%emt 0:07:48]} Bxd8 {[%emt 0:02:14]} 17. Bg3 {[%emt 0:00:43]} Ncxe4 {[%emt 0:12:45]} 18. Bxe5+ {[%emt 0:01:48]} Kc8 {[%emt 0:02:19]} 19. Bxe4 {[%emt 0:06:23]} Nxe4 {[%emt 0:00:26]} 20. Bxg7 {[%emt 0:04:37]} Nd6+ {[%emt 0:11:11]} 21. Ne3 {[%emt 0:00:39]} Nf5 {[%emt 0:03:36]} 22. Bc3 {[%emt 0:00:12]} Nxe3 {[%emt 0:00:58]} 23. fxe3 {[%emt 0:00:08]} Bg5 {[%emt 0:00:28]} 24. Bd2 {[%emt 0:00:50]} f5 {[%emt 0:00:15]} 25. g3 {[%emt 0:00:09]} Be7 {[%emt 0:00:58]} 26. Rf1 {[%emt 0:00:16]} Rf8 {[%emt 0:00:34]} 27. Be1 {[%emt 0:03:37]} Kd7 {[%emt 0:00:53]} 28. Rf4 {[%emt 0:00:08]} Ke6 {[%emt 0:00:24]} 29. Bb4 {[%emt 0:02:59]} c5 {[%emt 0:00:12]} 30. Bc3 {[%emt 0:01:36]} Rg8 {[%emt 0:01:25]} 31. g4 {[%emt 0:00:53]} fxg4 {[%emt 0:00:06]} 32. Re4+ {[%emt 0:00:29]} Kd7 {[%emt 0:00:32]} 33. hxg4 {[%emt 0:01:19]} Bd6 {[%emt 0:00:38]} 34. Kd3 {[%emt 0:01:57]} Rg5 {[%emt 0:00:52]} 35. Bf6 {[%emt 0:00:23]} Rg6 {[%emt 0:00:22]} 36. Bc3 {[%emt 0:04:56]} Rg5 {[%emt 0:00:15]} 37. Kc4 {[%emt 0:02:07]} Kc6 {[%emt 0:01:07]} 38. Bf6 {[%emt 0:00:26]} Rg6 {[%emt 0:00:09]} 39. Bh8 {[%emt 0:00:39]} Rg8 {[%emt 0:00:17]} 40. Bf6 {[%emt 0:00:52]} Rg6 {[%emt 0:00:09]} 41. Bh4 {[%emt 0:04:16]} Rg7 {[%emt 0:04:31]} 42. g5 {[%emt 0:08:28]} Be7 {[%emt 0:02:58]} 43. Re6+ {[%emt 0:03:36]} Kd7 {[%emt 0:00:51]} 44. Rh6 {[%emt 0:02:17]} Bxg5 {[%emt 0:02:07]} 45. Bxg5 {[%emt 0:00:09]} Rxg5 {[%emt 0:00:07]} 46. Rxh7+ {[%emt 0:02:15]} Kc6 {[%emt 0:00:24]} 47. Rh6+ {[%emt 0:00:07]} Kc7 {[%emt 0:00:08]} 48. c3 {[%emt 0:03:59]} Re5 {[%emt 0:01:13]} 49. Kd3 {[%emt 0:00:43]} Rd5+ {[%emt 0:03:22]} 50. Ke2 {[%emt 0:00:44]} Rf5 {[%emt 0:01:52]} 51. e4 {[%emt 0:00:20]} Rf4 {[%emt 0:00:23]} 52. Ke3 {[%emt 0:01:01]} Rf1 {[%emt 0:00:22]} 53. e5 {[%emt 0:01:27]} Rb1 {[%emt 0:01:56]} 54. Rh2 {[%emt 0:00:34]} b6 {[%emt 0:02:20]} 55. Ke4 {[%emt 0:00:27]} Kd7 {[%emt 0:00:27]} 56. a5 {[%emt 0:02:03]} Re1+ {[%emt 0:00:46]} 57. Kd5 {[%emt 0:00:35]} Rd1+ {[%emt 0:00:22]} 58. Kc4 {[%emt 0:00:47]} Re1 {[%emt 0:01:28]} 59. Rh7+ {[%emt 0:01:43]} Kc6 {[%emt 0:00:19]} 60. Rh6+ {[%emt 0:00:34]} Kd7 {[%emt 0:04:24]} 61. e6+ {[%emt 0:02:55]} Kc7 {[%emt 0:02:27]} 62. Rh7+ {[%emt 0:01:57]} Kc6 {[%emt 0:01:10]} 63. Rxa7 {[%emt 0:00:07]} Rxe6 {[%emt 0:02:02]} 64. Ra6 {[%emt 0:00:10]} 1-0

[Event "Festival Groningen-A 2024"]
[Site "Groningen"]
[Date "2024.12.29"]
[Round "8.19"]
[White "Madularea, David"]
[Black "De Boer, Bas"]
[Result "1/2-1/2"]
[ECO "C01"]
[WhiteElo "2245"]
[BlackElo "2157"]
[Annotator "RC"]
[PlyCount "48"]
[EventDate "2024.12.21"]
[EventType "swiss"]
[EventCountry "NED"]
[SourceTitle "playchess.com"]
[Source "ChessBase"]
[SourceQuality "1"]
[TimeControl "40/5400+30:1800+30"]

1. e4 {[%emt 0:00:03]} e5 {[%emt 0:00:05]} 2. Nf3 {[%emt 0:00:03]} Nf6 {[%emt 0:00:05]} 3. Nxe5 {[%emt 0:00:19]} d6 {[%emt 0:00:05]} 4. Nf3 {[%emt 0:00:04]} Nxe4 {[%emt 0:00:06]} 5. c4 {[%emt 0:00:03]} Be7 {[%emt 0:03:23]} 6. d4 {[%emt 0:00:43]} d5 {[%emt 0:04:07]} 7. Nc3 {[%emt 0:02:12]} Nxc3 {[%emt 0:05:35]} 8. bxc3 {[%emt 0:00:07]} O-O {[%emt 0:02:24]} 9. Bd3 {[%emt 0:02:28]} dxc4 {[%emt 0:09:41]} 10. Bxc4 {[%emt 0:00:45]} c5 {[%emt 0:00:12]} 11. O-O {[%emt 0:06:57]} cxd4 {[%emt 0:01:25]} 12. cxd4 {[%emt 0:00:23]} Bg4 {[%emt 0:02:46]} 13. d5 {[%emt 0:03:21]} Nd7 {[%emt 0:05:07]} 14. Bf4 {[%emt 0:11:56]} Nb6 {[%emt 0:02:57]} 15. Bb3 {[%emt 0:00:31]} Bd6 {[%emt 0:00:38]} 16. Be3 {[%emt 0:00:46]} Nd7 {[%emt 0:00:45]} 17. h3 {[%emt 0:07:27]} Bh5 {[%emt 0:03:00]} 18. g4 {[%emt 0:10:39]} Bg6 {[%emt 0:00:06]} 19. Rc1 {[%emt 0:18:36]} f5 {[%emt 0:08:56]} 20. Nd4 {[%emt 0:03:50]} Qh4 {[%emt 0:03:42]} 21. Nb5 {[%emt 0:04:55]} Qxh3 {[%emt 0:00:40]} 22. Nxd6 {[%emt 0:00:33]} Ne5 {[%emt 0:00:05]} 23. f3 {[%emt 0:01:05]} Qg3+ {[%emt 0:00:31]} 24. Kh1 {[%emt 0:00:03]} Qh3+ {[%emt 0:01:09]} 1/2-1/2

[Event "Festival Groningen-A 2024"]
[Site "Groningen"]
[Date "2024.12.29"]
[Round "8.20"]
[White "Bakija, Alan"]
[Black "Keuning, Selwin"]
[Result "1/2-1/2"]
[ECO "A12"]
[WhiteElo "2233"]
[BlackElo "2180"]
[Annotator "RC"]
[PlyCount "83"]
[EventDate "2024.12.21"]
[EventType "swiss"]
[EventCountry "NED"]
[SourceTitle "playchess.com"]
[Source "ChessBase"]
[SourceQuality "1"]
[TimeControl "40/5400+30:1800+30"]

1. Nf3 {[%emt 0:00:02]} d5 {[%emt 0:00:09]} 2. g3 {[%emt 0:00:22]} c6 {[%emt 0:00:07]} 3. Bg2 {[%emt 0:00:05]} Bf5 {[%emt 0:00:07]} 4. O-O {[%emt 0:00:08]} e6 {[%emt 0:00:04]} 5. b3 {[%emt 0:04:37]} Nf6 {[%emt 0:01:55]} 6. Bb2 {[%emt 0:00:08]} h6 {[%emt 0:01:56]} 7. c4 {[%emt 0:00:20]} Be7 {[%emt 0:06:44]} 8. d3 {[%emt 0:00:46]} O-O {[%emt 0:01:07]} 9. Nbd2 {[%emt 0:00:05]} a5 {[%emt 0:00:50]} 10. cxd5 {[%emt 0:04:31]} cxd5 {[%emt 0:02:42]} 11. Nd4 {[%emt 0:04:45]} Bh7 {[%emt 0:02:57]} 12. e4 {[%emt 0:07:48]} Qb6 {[%emt 0:11:09]} 13. exd5 {[%emt 0:10:13]} Bxd3 {[%emt 0:13:14]} 14. dxe6 {[%emt 0:19:42]} Bc5 {[%emt 0:16:16]} 15. N2f3 {[%emt 0:00:28]} Bxf1 {[%emt 0:01:17]} 16. exf7+ {[%emt 0:00:09]} Rxf7 {[%emt 0:05:51]} 17. Qxf1 {[%emt 0:00:06]} Nbd7 {[%emt 0:04:17]} 18. Re1 {[%emt 0:01:16]} Re8 {[%emt 0:04:21]} 19. Rxe8+ {[%emt 0:00:21]} Nxe8 {[%emt 0:04:09]} 20. Bh3 {[%emt 0:00:11]} Kh8 {[%emt 0:10:02]} 21. Qc4 {[%emt 0:02:53]} Re7 {[%emt 0:09:07]} 22. Nf5 {[%emt 0:02:20]} Nd6 {[%emt 0:01:42]} 23. Nxd6 {[%emt 0:04:31]} Qxd6 {[%emt 0:00:26]} 24. Kg2 {[%emt 0:00:17]} b6 {[%emt 0:01:06]} 25. a3 {[%emt 0:00:21]} Nf8 {[%emt 0:00:42]} 26. b4 {[%emt 0:03:23]} axb4 {[%emt 0:00:03]} 27. axb4 {[%emt 0:00:03]} Bxb4 {[%emt 0:00:07]} 28. Ne5 {[%emt 0:00:14]} Rxe5 {[%emt 0:01:25]} 29. Bxe5 {[%emt 0:00:21]} Qxe5 {[%emt 0:00:04]} 30. Qxb4 {[%emt 0:00:10]} Qd5+ {[%emt 0:00:50]} 31. Kg1 {[%emt 0:00:40]} Qc5 {[%emt 0:00:27]} 32. Qxc5 {[%emt 0:00:40]} bxc5 {[%emt 0:00:02]} 33. Kf1 {[%emt 0:00:07]} Kg8 {[%emt 0:00:10]} 34. Ke2 {[%emt 0:00:24]} Kf7 {[%emt 0:00:08]} 35. Kd3 {[%emt 0:00:06]} Ke7 {[%emt 0:00:40]} 36. Kc4 {[%emt 0:00:05]} Kd6 {[%emt 0:00:24]} 37. Bf5 {[%emt 0:00:07]} Ke5 {[%emt 0:01:32]} 38. g4 {[%emt 0:01:47]} Kd6 {[%emt 0:00:38]} 39. f3 {[%emt 0:02:39]} g6 {[%emt 0:00:27]} 40. Be4 {[%emt 0:00:31]} Nd7 {[%emt 0:00:16]} 41. h4 {[%emt 0:34:21]} g5 {[%emt 0:03:50]} 42. hxg5 {[%emt 0:00:00]} 1/2-1/2

[Event "Festival Groningen-A 2024"]
[Site "Groningen"]
[Date "2024.12.29"]
[Round "8.21"]
[White "Khoo-Thwe, Louis"]
[Black "Mohammed, Dilshad"]
[Result "1-0"]
[ECO "B13"]
[WhiteElo "2124"]
[BlackElo "2078"]
[Annotator "RC"]
[PlyCount "59"]
[EventDate "2024.12.21"]
[EventType "swiss"]
[EventCountry "NED"]
[SourceTitle "playchess.com"]
[Source "ChessBase"]
[SourceQuality "1"]
[TimeControl "40/5400+30:1800+30"]

1. e4 {[%emt 0:00:02]} c6 {[%emt 0:06:28]} 2. d4 {[%emt 0:00:21]} d5 {[%emt 0:00:02]} 3. exd5 {[%emt 0:00:40]} cxd5 {[%emt 0:00:03]} 4. Bd3 {[%emt 0:00:51]} Nc6 {[%emt 0:00:47]} 5. c3 {[%emt 0:00:10]} Nf6 {[%emt 0:00:55]} 6. Bf4 {[%emt 0:00:16]} e6 {[%emt 0:00:25]} 7. Nd2 {[%emt 0:00:37]} Bd6 {[%emt 0:00:04]} 8. Bg3 {[%emt 0:00:19]} O-O {[%emt 0:01:05]} 9. Ngf3 {[%emt 0:00:15]} Re8 {[%emt 0:00:34]} 10. O-O {[%emt 0:00:52]} e5 {[%emt 0:00:38]} 11. dxe5 {[%emt 0:00:50]} Nxe5 {[%emt 0:00:04]} 12. Nxe5 {[%emt 0:02:48]} Bxe5 {[%emt 0:00:03]} 13. Bxe5 {[%emt 0:01:45]} Rxe5 {[%emt 0:00:04]} 14. Qb3 {[%emt 0:08:28]} Rh5 {[%emt 0:04:06]} 15. Rfe1 {[%emt 0:04:33]} Qc7 {[%emt 0:05:55]} 16. g3 {[%emt 0:03:04]} Be6 {[%emt 0:01:47]} 17. Nf3 {[%emt 0:06:49]} Ng4 {[%emt 0:06:09]} 18. h4 {[%emt 0:04:18]} Re8 {[%emt 0:06:36]} 19. Qa4 {[%emt 0:04:02]} Nf6 {[%emt 0:02:56]} 20. g4 {[%emt 0:06:16]} Bd7 {[%emt 0:09:05]} 21. Qd4 {[%emt 0:02:17]} Ne4 {[%emt 0:18:09]} 22. Bxe4 {[%emt 0:06:44]} dxe4 {[%emt 0:01:04]} 23. gxh5 {[%emt 0:00:30]} exf3 {[%emt 0:01:22]} 24. Rxe8+ {[%emt 0:02:12]} Bxe8 {[%emt 0:00:02]} 25. Rd1 {[%emt 0:04:34]} Qc8 {[%emt 0:00:38]} 26. h6 {[%emt 0:03:04]} gxh6 {[%emt 0:00:55]} 27. Kh2 {[%emt 0:01:08]} Qc7+ {[%emt 0:03:04]} 28. Kh1 {[%emt 0:01:04]} f5 {[%emt 0:03:58]} 29. Rg1+ {[%emt 0:01:29]} Kf8 {[%emt 0:00:18]} 30. Qh8+ {[%emt 0:00:44]} 1-0